[Event "Early-Titled-Tuesday-Blitz-February-13-2024"]
[Site "Chess.com"]
[Date "2024.02.13"]
[Round "4"]
[White "Leonid_Starozhilov"]
[Black "FairChess_on_YouTube"]
[Result "0-1"]
[WhiteElo "2740"]
[BlackElo "3077"]
[TimeControl "180+1"]
[EndTime "8:43:21 PST"]
[Termination "FairChess_on_YouTube won on time"]

1. e4 {[%clk 0:02:57.5]} 1... c5 {[%clk 0:02:58.3]} 2. Nf3 {[%clk 0:02:57.1]}
2... e6 {[%clk 0:02:55.7]} 3. c4 {[%clk 0:02:56.5]} 3... Nc6 {[%clk 0:02:52.8]}
4. Nc3 {[%clk 0:02:53.6]} 4... e5 {[%clk 0:02:45.3]} 5. Bd3 {[%clk 0:02:53.6]}
5... d6 {[%clk 0:02:44.9]} 6. Bc2 {[%clk 0:02:53.8]} 6... g6 {[%clk 0:02:36.7]}
7. d3 {[%clk 0:02:52.1]} 7... Bg7 {[%clk 0:02:34.7]} 8. Nd5 {[%clk 0:02:48.9]}
8... Nge7 {[%clk 0:02:31.4]} 9. Bg5 {[%clk 0:02:39.1]} 9... h6 {[%clk 0:02:31]}
10. Bxe7 {[%clk 0:02:26.8]} 10... Nxe7 {[%clk 0:02:30.8]} 11. Ba4+ {[%clk
0:02:27.7]} 11... Kf8 {[%clk 0:02:31.3]} 12. O-O {[%clk 0:02:13.8]} 12... h5
{[%clk 0:02:12.2]} 13. a3 {[%clk 0:02:06.8]} 13... Nxd5 {[%clk 0:01:57.3]} 14.
cxd5 {[%clk 0:01:46.6]} 14... Bg4 {[%clk 0:01:56.9]} 15. h3 {[%clk 0:01:46]}
15... Qf6 {[%clk 0:01:55.4]} 16. b4 {[%clk 0:01:20.4]} 16... Rc8 {[%clk
0:01:51.3]} 17. Rc1 {[%clk 0:01:00.4]} 17... Bh6 {[%clk 0:01:26]} 18. Rc3 {[%clk
0:00:55.2]} 18... Bxf3 {[%clk 0:01:17.3]} 19. Qxf3 {[%clk 0:00:53.7]} 19... Qxf3
{[%clk 0:01:17.2]} 20. gxf3 {[%clk 0:00:54.6]} 20... Ke7 {[%clk 0:01:15.3]} 21.
bxc5 {[%clk 0:00:49.8]} 21... Rxc5 {[%clk 0:01:15.1]} 22. Rxc5 {[%clk
0:00:50.1]} 22... dxc5 {[%clk 0:01:16]} 23. Rb1 {[%clk 0:00:50.4]} 23... b6
{[%clk 0:01:10.7]} 24. Bb5 {[%clk 0:00:47.1]} 24... Kd6 {[%clk 0:01:09.8]} 25.
a4 {[%clk 0:00:45.2]} 25... Bd2 {[%clk 0:01:09.4]} 26. Kf1 {[%clk 0:00:42.8]}
26... Bc3 {[%clk 0:01:07.8]} 27. Ke2 {[%clk 0:00:42.8]} 27... Ra8 {[%clk
0:01:01.6]} 28. Ba6 {[%clk 0:00:42.9]} 28... Rb8 {[%clk 0:01:00]} 29. Bb5 {[%clk
0:00:41.2]} 29... Bd4 {[%clk 0:00:58.4]} 30. Rg1 {[%clk 0:00:36]} 30... Ra8
{[%clk 0:00:56.5]} 31. Ba6 {[%clk 0:00:35.8]} 31... Rd8 {[%clk 0:00:54.5]} 32.
Bb5 {[%clk 0:00:35]} 32... Kc7 {[%clk 0:00:53.7]} 33. Bc4 {[%clk 0:00:34.3]}
33... Rd6 {[%clk 0:00:53.4]} 34. Ba6 {[%clk 0:00:27.5]} 34... Rf6 {[%clk
0:00:53]} 35. Rg3 {[%clk 0:00:10.7]} 35... Rf4 {[%clk 0:00:52.1]} 36. Rg1 {[%clk
0:00:09.9]} 36... Rh4 {[%clk 0:00:51.4]} 37. Rg3 {[%clk 0:00:10]} 37... Kd6
{[%clk 0:00:50.2]} 38. Bc4 {[%clk 0:00:09.3]} 38... Bb2 {[%clk 0:00:49]} 39. Bb5
{[%clk 0:00:09.1]} 39... Bc1 {[%clk 0:00:48.5]} 40. Kf1 {[%clk 0:00:06.6]} 40...
Bf4 {[%clk 0:00:48.4]} 41. Kg1 {[%clk 0:00:07.2]} 41... Bh6 {[%clk 0:00:35.6]}
42. Kg2 {[%clk 0:00:06.7]} 42... Bg7 {[%clk 0:00:34.1]} 43. Bc4 {[%clk
0:00:06.5]} 43... Bf6 {[%clk 0:00:34.6]} 44. Kg1 {[%clk 0:00:06.6]} 44... Rf4
{[%clk 0:00:35.1]} 45. Kg2 {[%clk 0:00:05.3]} 45... Bh4 {[%clk 0:00:35.1]} 46.
Bb5 {[%clk 0:00:03.3]} 46... Rf6 {[%clk 0:00:32.4]} 47. Bc4 {[%clk 0:00:02.7]}
47... Ke7 {[%clk 0:00:30.6]} 48. Bb5 {[%clk 0:00:02.7]} 48... Kd6 {[%clk
0:00:27.9]} 49. Bc4 {[%clk 0:00:02.5]} 49... Kc7 {[%clk 0:00:27.5]} 50. Bb5
{[%clk 0:00:02.7]} 50... Kb7 {[%clk 0:00:25.7]} 51. Bc4 {[%clk 0:00:01.7]} 51...
a6 {[%clk 0:00:24.4]} 0-1

[Event "Early-Titled-Tuesday-Blitz-February-13-2024"]
[Site "Chess.com"]
[Date "2024.02.13"]
[Round "4"]
[White "ChessRespected"]
[Black "Matibar"]
[Result "1/2-1/2"]
[WhiteElo "2561"]
[BlackElo "2768"]
[TimeControl "180+1"]
[EndTime "8:43:21 PST"]
[Termination "Game drawn by repetition"]

1. d4 {[%clk 0:03:00.9]} 1... Nf6 {[%clk 0:02:58.3]} 2. Nf3 {[%clk 0:03:00.6]}
2... g6 {[%clk 0:02:58]} 3. g3 {[%clk 0:03:00.2]} 3... Bg7 {[%clk 0:02:57.8]} 4.
Bg2 {[%clk 0:03:00.8]} 4... O-O {[%clk 0:02:58.5]} 5. c4 {[%clk 0:03:01.1]} 5...
d6 {[%clk 0:02:58.9]} 6. Nc3 {[%clk 0:03:00.6]} 6... c6 {[%clk 0:02:58.9]} 7.
O-O {[%clk 0:02:59.7]} 7... Bf5 {[%clk 0:02:59]} 8. Re1 {[%clk 0:02:47.7]} 8...
Ne4 {[%clk 0:02:57.2]} 9. Bd2 {[%clk 0:02:44]} 9... Qc8 {[%clk 0:02:51.2]} 10.
Nh4 {[%clk 0:02:39]} 10... Nxc3 {[%clk 0:02:49]} 11. Bxc3 {[%clk 0:02:39]} 11...
Bh3 {[%clk 0:02:43.9]} 12. e4 {[%clk 0:02:38.1]} 12... Bxg2 {[%clk 0:02:42.8]}
13. Nxg2 {[%clk 0:02:39]} 13... e5 {[%clk 0:02:36.1]} 14. d5 {[%clk 0:02:33.7]}
14... Nd7 {[%clk 0:02:16.2]} 15. dxc6 {[%clk 0:02:29.7]} 15... Qxc6 {[%clk
0:02:13.9]} 16. Ne3 {[%clk 0:02:30.1]} 16... Nc5 {[%clk 0:01:52.6]} 17. f3
{[%clk 0:02:21.9]} 17... Kh8 {[%clk 0:01:49.8]} 18. Qd5 {[%clk 0:02:15.5]} 18...
Qc7 {[%clk 0:01:49]} 19. Rad1 {[%clk 0:02:13.9]} 19... Rad8 {[%clk 0:01:48.5]}
20. Bb4 {[%clk 0:02:10.7]} 20... f5 {[%clk 0:01:39.4]} 21. exf5 {[%clk 0:01:58]}
21... gxf5 {[%clk 0:01:39.3]} 22. Bxc5 {[%clk 0:01:53.1]} 22... dxc5 {[%clk
0:01:38.4]} 23. Qe6 {[%clk 0:01:53.2]} 23... e4 {[%clk 0:01:10.9]} 24. Rxd8
{[%clk 0:01:41]} 24... Qxd8 {[%clk 0:01:08.7]} 25. Nxf5 {[%clk 0:01:20.7]} 25...
exf3 {[%clk 0:01:02.5]} 26. Rf1 {[%clk 0:01:06]} 26... Qf6 {[%clk 0:00:20.6]}
27. Qxf6 {[%clk 0:01:00.3]} 27... Bxf6 {[%clk 0:00:21.5]} 28. b3 {[%clk
0:00:53.3]} 28... Rd8 {[%clk 0:00:18.8]} 29. Rxf3 {[%clk 0:00:51.6]} 29... Kg8
{[%clk 0:00:18.4]} 30. Kg2 {[%clk 0:00:50.5]} 30... Kf7 {[%clk 0:00:18.5]} 31.
Ne3 {[%clk 0:00:47.2]} 31... Kg6 {[%clk 0:00:17.7]} 32. Nd5 {[%clk 0:00:47.1]}
32... Bd4 {[%clk 0:00:17.9]} 33. h4 {[%clk 0:00:47.1]} 33... Re8 {[%clk
0:00:17.8]} 34. g4 {[%clk 0:00:46.2]} 34... Re2+ {[%clk 0:00:17]} 35. Kh3 {[%clk
0:00:45.3]} 35... Rxa2 {[%clk 0:00:16.9]} 36. h5+ {[%clk 0:00:45.1]} 36... Kg7
{[%clk 0:00:17.3]} 37. g5 {[%clk 0:00:45.4]} 37... Ra1 {[%clk 0:00:16.6]} 38.
Kg4 {[%clk 0:00:42.5]} 38... Rg1+ {[%clk 0:00:16.1]} 39. Kf5 {[%clk 0:00:42.5]}
39... Rh1 {[%clk 0:00:15]} 40. h6+ {[%clk 0:00:42.8]} 40... Kf7 {[%clk
0:00:14.7]} 41. Nc7 {[%clk 0:00:37.8]} 41... Re1 {[%clk 0:00:12.5]} 42. Kg4+
{[%clk 0:00:31.5]} 42... Kg6 {[%clk 0:00:10.3]} 43. Nd5 {[%clk 0:00:28.7]} 43...
Rg1+ {[%clk 0:00:09]} 44. Kf4 {[%clk 0:00:26.1]} 44... Rxg5 {[%clk 0:00:05.2]}
45. Ne7+ {[%clk 0:00:25.4]} 45... Kf6 {[%clk 0:00:05.4]} 46. Nd5+ {[%clk
0:00:21.8]} 46... Kg6 {[%clk 0:00:05.3]} 47. Ne7+ {[%clk 0:00:21.7]} 47... Kxh6
{[%clk 0:00:05.2]} 48. Rh3+ {[%clk 0:00:21.2]} 48... Rh5 {[%clk 0:00:05.6]} 49.
Nf5+ {[%clk 0:00:21.1]} 49... Kg6 {[%clk 0:00:06]} 50. Ne7+ {[%clk 0:00:21]}
50... Kh6 {[%clk 0:00:06.2]} 51. Ng8+ {[%clk 0:00:20.6]} 51... Kg6 {[%clk
0:00:06.3]} 52. Ne7+ {[%clk 0:00:19.4]} 52... Kh6 {[%clk 0:00:06.2]} 1/2-1/2

[Event "Early-Titled-Tuesday-Blitz-February-13-2024"]
[Site "Chess.com"]
[Date "2024.02.13"]
[Round "4"]
[White "Agoking701"]
[Black "gpsji27"]
[Result "1-0"]
[WhiteElo "2644"]
[BlackElo "2318"]
[TimeControl "180+1"]
[EndTime "8:43:23 PST"]
[Termination "Agoking701 won by resignation"]

1. e4 {[%clk 0:03:00.9]} 1... e5 {[%clk 0:02:53]} 2. Bc4 {[%clk 0:02:58.3]} 2...
Nc6 {[%clk 0:02:52.7]} 3. d3 {[%clk 0:02:57.9]} 3... Nf6 {[%clk 0:02:50]} 4. Nc3
{[%clk 0:02:58.3]} 4... Na5 {[%clk 0:02:47]} 5. Qf3 {[%clk 0:02:56.5]} 5... Nxc4
{[%clk 0:02:46]} 6. dxc4 {[%clk 0:02:57.4]} 6... Bc5 {[%clk 0:02:44.6]} 7. Nge2
{[%clk 0:02:55.1]} 7... d6 {[%clk 0:02:37.9]} 8. O-O {[%clk 0:02:51.5]} 8... O-O
{[%clk 0:02:33.6]} 9. Na4 {[%clk 0:02:45.9]} 9... Bg4 {[%clk 0:02:17.5]} 10. Qd3
{[%clk 0:02:44.8]} 10... Qd7 {[%clk 0:02:15]} 11. Nxc5 {[%clk 0:02:23.2]} 11...
dxc5 {[%clk 0:02:15.9]} 12. f3 {[%clk 0:02:12.8]} 12... Be6 {[%clk 0:02:00.5]}
13. Bg5 {[%clk 0:02:07.1]} 13... Qxd3 {[%clk 0:01:44.7]} 14. cxd3 {[%clk
0:02:08]} 14... Nd7 {[%clk 0:01:45.6]} 15. Rad1 {[%clk 0:02:08.1]} 15... f6
{[%clk 0:01:32.9]} 16. Be3 {[%clk 0:02:08.4]} 16... b6 {[%clk 0:01:33.3]} 17. h3
{[%clk 0:02:07.1]} 17... Rad8 {[%clk 0:01:32.2]} 18. f4 {[%clk 0:02:07.6]} 18...
exf4 {[%clk 0:01:14.8]} 19. Nxf4 {[%clk 0:01:57]} 19... Bf7 {[%clk 0:01:14.1]}
20. Nd5 {[%clk 0:01:57.3]} 20... Bxd5 {[%clk 0:00:46.5]} 21. exd5 {[%clk
0:01:58.2]} 21... Ne5 {[%clk 0:00:47.4]} 22. Bf4 {[%clk 0:01:54.5]} 22... Rfe8
{[%clk 0:00:38.6]} 23. b3 {[%clk 0:01:54.3]} 23... Ng6 {[%clk 0:00:38.2]} 24.
Bxc7 {[%clk 0:01:53.5]} 24... Rd7 {[%clk 0:00:38.9]} 25. Bg3 {[%clk 0:01:50.8]}
25... Re2 {[%clk 0:00:39.3]} 26. Rf2 {[%clk 0:01:51.1]} 26... Rde7 {[%clk
0:00:37.2]} 27. Kf1 {[%clk 0:01:51.2]} 27... Rxf2+ {[%clk 0:00:37.1]} 28. Kxf2
{[%clk 0:01:52.1]} 28... Ne5 {[%clk 0:00:37.2]} 29. d4 {[%clk 0:01:48.9]} 29...
Nd7 {[%clk 0:00:34.1]} 30. Bd6 {[%clk 0:01:40.7]} 30... Re8 {[%clk 0:00:16.6]}
31. dxc5 {[%clk 0:01:41.2]} 31... bxc5 {[%clk 0:00:17.5]} 32. b4 {[%clk
0:01:40.4]} 32... cxb4 {[%clk 0:00:17.4]} 33. Bxb4 {[%clk 0:01:41.3]} 33... Rc8
{[%clk 0:00:17]} 34. Rc1 {[%clk 0:01:38]} 34... Ne5 {[%clk 0:00:17.6]} 35. Ke2
{[%clk 0:01:31.2]} 35... Rxc4 {[%clk 0:00:17.8]} 36. Rxc4 {[%clk 0:01:30.3]}
36... Nxc4 {[%clk 0:00:18.7]} 37. Kd3 {[%clk 0:01:26.2]} 37... Ne5+ {[%clk
0:00:18.8]} 38. Kd4 {[%clk 0:01:26.4]} 38... Kf7 {[%clk 0:00:19.4]} 39. Kc5
{[%clk 0:01:24.5]} 39... Ke7 {[%clk 0:00:20]} 40. Kb5+ {[%clk 0:01:22.4]} 40...
Kd7 {[%clk 0:00:19.8]} 41. Ka6 {[%clk 0:01:23.3]} 41... Nd3 {[%clk 0:00:20.1]}
42. Bf8 {[%clk 0:01:21]} 42... Nf4 {[%clk 0:00:19.9]} 43. Bxg7 {[%clk
0:01:18.3]} 43... Nxd5 {[%clk 0:00:19.9]} 44. Kxa7 {[%clk 0:01:16.8]} 44... Ne7
{[%clk 0:00:19.6]} 45. Bxf6 {[%clk 0:01:15.7]} 45... Nc6+ {[%clk 0:00:20.2]} 46.
Kb6 {[%clk 0:01:15.4]} 46... Nb4 {[%clk 0:00:20.9]} 47. Kc5 {[%clk 0:01:05.7]}
47... Nxa2 {[%clk 0:00:20.4]} 48. Bb2 {[%clk 0:01:06.3]} 48... Ke6 {[%clk
0:00:20]} 49. Kc4 {[%clk 0:01:05.7]} 49... Kf5 {[%clk 0:00:20.2]} 50. Kb3 {[%clk
0:00:53.9]} 50... Kf4 {[%clk 0:00:20.4]} 51. Kxa2 {[%clk 0:00:52.7]} 51... Kg3
{[%clk 0:00:20.7]} 52. Bf6 {[%clk 0:00:51.5]} 52... Kxg2 {[%clk 0:00:19.7]} 53.
h4 {[%clk 0:00:52.1]} 53... Kg3 {[%clk 0:00:20.2]} 54. Kb3 {[%clk 0:00:52]}
54... Kg4 {[%clk 0:00:20.8]} 55. Kc4 {[%clk 0:00:52.2]} 55... Kh5 {[%clk
0:00:21.4]} 56. Kd5 {[%clk 0:00:52]} 56... Kh6 {[%clk 0:00:22.1]} 57. Ke6 {[%clk
0:00:51.3]} 57... Kh5 {[%clk 0:00:22.7]} 58. Kf5 {[%clk 0:00:50.4]} 58... Kh6
{[%clk 0:00:23.2]} 59. Bg5+ {[%clk 0:00:50.6]} 59... Kg7 {[%clk 0:00:23.4]} 60.
h5 {[%clk 0:00:51]} 60... Kg8 {[%clk 0:00:23]} 61. Kf6 {[%clk 0:00:47.5]} 61...
Kf8 {[%clk 0:00:22.9]} 62. Be3 {[%clk 0:00:43.3]} 62... Kg8 {[%clk 0:00:23.1]}
63. Kg5 {[%clk 0:00:43.6]} 63... Kh8 {[%clk 0:00:23.5]} 64. Kh6 {[%clk
0:00:43.2]} 64... Kg8 {[%clk 0:00:23.9]} 65. Bd4 {[%clk 0:00:44.1]} 65... Kf7
{[%clk 0:00:23.9]} 66. Kxh7 {[%clk 0:00:45]} 66... Kf8 {[%clk 0:00:24.3]} 67. h6
{[%clk 0:00:45.4]} 1-0

[Event "Early-Titled-Tuesday-Blitz-February-13-2024"]
[Site "Chess.com"]
[Date "2024.02.13"]
[Round "4"]
[White "maciek_92"]
[Black "sergoy"]
[Result "0-1"]
[WhiteElo "2818"]
[BlackElo "2981"]
[TimeControl "180+1"]
[EndTime "8:43:29 PST"]
[Termination "sergoy won by resignation"]

1. c4 {[%clk 0:03:00.9]} 1... c6 {[%clk 0:02:58.6]} 2. Nc3 {[%clk 0:02:58.3]}
2... d5 {[%clk 0:02:58.9]} 3. e3 {[%clk 0:02:58.8]} 3... Nf6 {[%clk 0:02:59.1]}
4. Nf3 {[%clk 0:02:57.6]} 4... e6 {[%clk 0:02:58.7]} 5. b3 {[%clk 0:02:57.9]}
5... Nbd7 {[%clk 0:02:58.9]} 6. Bb2 {[%clk 0:02:58.4]} 6... Bd6 {[%clk
0:02:59.1]} 7. g3 {[%clk 0:02:54.1]} 7... O-O {[%clk 0:02:51.6]} 8. Bg2 {[%clk
0:02:54]} 8... e5 {[%clk 0:02:51]} 9. cxd5 {[%clk 0:02:43.7]} 9... cxd5 {[%clk
0:02:40]} 10. d4 {[%clk 0:02:39.6]} 10... e4 {[%clk 0:02:38.1]} 11. Nd2 {[%clk
0:02:39.3]} 11... a6 {[%clk 0:02:36.1]} 12. O-O {[%clk 0:02:36.8]} 12... Re8
{[%clk 0:02:36.5]} 13. a4 {[%clk 0:02:32.4]} 13... Nf8 {[%clk 0:02:35.6]} 14. f3
{[%clk 0:02:18.1]} 14... exf3 {[%clk 0:02:17.4]} 15. Qxf3 {[%clk 0:02:19]} 15...
Be6 {[%clk 0:02:11.1]} 16. e4 {[%clk 0:01:33.5]} 16... Qb6 {[%clk 0:02:11.1]}
17. Kh1 {[%clk 0:01:30.5]} 17... Qxd4 {[%clk 0:02:03.3]} 18. Nxd5 {[%clk
0:01:02.8]} 18... Qxb2 {[%clk 0:01:15.9]} 19. Nc4 {[%clk 0:01:03]} 19... Bxd5
{[%clk 0:01:04]} 20. Nxb2 {[%clk 0:00:58.7]} 20... Bxe4 {[%clk 0:00:58.7]} 21.
Qe2 {[%clk 0:00:45.4]} 21... Ng6 {[%clk 0:00:39.1]} 22. Nc4 {[%clk 0:00:43.9]}
22... Bc6 {[%clk 0:00:30.7]} 23. Qc2 {[%clk 0:00:38.3]} 23... Bb4 {[%clk
0:00:22.9]} 24. Bxc6 {[%clk 0:00:37.7]} 24... bxc6 {[%clk 0:00:23.8]} 25. Rad1
{[%clk 0:00:33.6]} 25... h5 {[%clk 0:00:24.1]} 26. Qf5 {[%clk 0:00:25.2]} 26...
h4 {[%clk 0:00:23]} 27. gxh4 {[%clk 0:00:23.6]} 27... Nxh4 {[%clk 0:00:23.2]}
28. Qg5 {[%clk 0:00:22.2]} 28... Ng6 {[%clk 0:00:23.6]} 29. Rf2 {[%clk
0:00:17.5]} 29... Re6 {[%clk 0:00:22.6]} 30. Rg2 {[%clk 0:00:17.2]} 30... Rae8
{[%clk 0:00:21.6]} 31. Rf1 {[%clk 0:00:16]} 31... Bc3 {[%clk 0:00:17.1]} 32. Rg3
{[%clk 0:00:15.2]} 32... Ne4 {[%clk 0:00:15]} 33. Qf5 {[%clk 0:00:14.9]} 33...
Rf6 {[%clk 0:00:09.6]} 34. Rgf3 {[%clk 0:00:02.4]} 34... Rxf5 {[%clk 0:00:08]}
35. Rxf5 {[%clk 0:00:02.6]} 35... Nf6 {[%clk 0:00:06.8]} 36. Rc5 {[%clk
0:00:02.4]} 36... Ng4 {[%clk 0:00:03.8]} 37. Kg2 {[%clk 0:00:01.3]} 37... N6e5
{[%clk 0:00:01.9]} 38. Nxe5 {[%clk 0:00:01]} 38... Bxe5 {[%clk 0:00:02.8]} 39.
Rxc6 {[%clk 0:00:01.1]} 39... Ne3+ {[%clk 0:00:03.2]} 40. Kf2 {[%clk 0:00:01.5]}
40... Nxf1 {[%clk 0:00:04.1]} 41. Kxf1 {[%clk 0:00:02.4]} 41... Bxh2 {[%clk
0:00:04.4]} 42. Rxa6 {[%clk 0:00:02.9]} 42... g5 {[%clk 0:00:05]} 43. Rb6 {[%clk
0:00:03.3]} 43... g4 {[%clk 0:00:04.8]} 44. a5 {[%clk 0:00:04.2]} 44... Rc8
{[%clk 0:00:03.6]} 45. a6 {[%clk 0:00:04.4]} 45... Rc1+ {[%clk 0:00:04.2]} 46.
Kg2 {[%clk 0:00:04.1]} 46... Rc2+ {[%clk 0:00:04.8]} 47. Kf1 {[%clk 0:00:04.8]}
47... g3 {[%clk 0:00:05.2]} 0-1

[Event "Early-Titled-Tuesday-Blitz-February-13-2024"]
[Site "Chess.com"]
[Date "2024.02.13"]
[Round "4"]
[White "isaak2009"]
[Black "kaanadayhamle"]
[Result "1-0"]
[WhiteElo "2683"]
[BlackElo "2425"]
[TimeControl "180+1"]
[EndTime "8:43:29 PST"]
[Termination "isaak2009 won by resignation"]

1. e4 {[%clk 0:02:57.3]} 1... e5 {[%clk 0:02:59.7]} 2. Nf3 {[%clk 0:02:56.9]}
2... Nc6 {[%clk 0:02:59.9]} 3. Bc4 {[%clk 0:02:56.9]} 3... Bc5 {[%clk
0:02:59.5]} 4. c3 {[%clk 0:02:56.8]} 4... Nf6 {[%clk 0:02:58.8]} 5. d3 {[%clk
0:02:56.8]} 5... d6 {[%clk 0:02:59]} 6. a4 {[%clk 0:02:55.2]} 6... a5 {[%clk
0:02:58]} 7. Nbd2 {[%clk 0:02:55.7]} 7... h6 {[%clk 0:02:58]} 8. Nf1 {[%clk
0:02:55.5]} 8... O-O {[%clk 0:02:57.5]} 9. Ng3 {[%clk 0:02:53.2]} 9... Be6
{[%clk 0:02:53.4]} 10. Bb3 {[%clk 0:02:50.3]} 10... Bb6 {[%clk 0:02:46.7]} 11.
O-O {[%clk 0:02:49.6]} 11... Nh7 {[%clk 0:02:44.5]} 12. Re1 {[%clk 0:02:40.4]}
12... Qe7 {[%clk 0:02:36]} 13. d4 {[%clk 0:02:26]} 13... Bxb3 {[%clk 0:02:32.7]}
14. Qxb3 {[%clk 0:02:25.9]} 14... exd4 {[%clk 0:02:33]} 15. cxd4 {[%clk
0:02:24.3]} 15... Nxd4 {[%clk 0:02:12.9]} 16. Nxd4 {[%clk 0:02:24.2]} 16... Bxd4
{[%clk 0:02:13.8]} 17. Nf5 {[%clk 0:02:23.3]} 17... Qf6 {[%clk 0:02:14.4]} 18.
Nxd4 {[%clk 0:02:22.2]} 18... Qxd4 {[%clk 0:02:15.3]} 19. Qxb7 {[%clk
0:02:21.7]} 19... Nf6 {[%clk 0:02:00]} 20. Be3 {[%clk 0:02:02.6]} 20... Qxe4
{[%clk 0:01:55.6]} 21. Qxc7 {[%clk 0:02:03.1]} 21... Qb4 {[%clk 0:01:26.5]} 22.
Qc2 {[%clk 0:01:43.2]} 22... Rac8 {[%clk 0:01:13.9]} 23. Qd2 {[%clk 0:01:42.6]}
23... Rb8 {[%clk 0:00:40.5]} 24. Bxh6 {[%clk 0:00:58.4]} 24... gxh6 {[%clk
0:00:19.6]} 25. Qxh6 {[%clk 0:00:59.3]} 25... Qxb2 {[%clk 0:00:18]} 26. Rad1
{[%clk 0:00:59.2]} 26... Nh7 {[%clk 0:00:16.1]} 27. Rd3 {[%clk 0:00:59.1]} 27...
Qf6 {[%clk 0:00:15.4]} 28. Qh5 {[%clk 0:00:45.8]} 28... Rbe8 {[%clk 0:00:11.5]}
29. Red1 {[%clk 0:00:42.4]} 29... Re5 {[%clk 0:00:11.6]} 30. Qh3 {[%clk
0:00:37.3]} 30... Rfe8 {[%clk 0:00:10.5]} 31. g3 {[%clk 0:00:21.4]} 31... Re1+
{[%clk 0:00:08.8]} 32. Rxe1 {[%clk 0:00:21.9]} 32... Rxe1+ {[%clk 0:00:09.7]}
33. Kg2 {[%clk 0:00:22.8]} 33... Re2 {[%clk 0:00:09.1]} 34. Qc8+ {[%clk
0:00:17.6]} 34... Kg7 {[%clk 0:00:09.4]} 35. Qg4+ {[%clk 0:00:15.2]} 35... Ng5
{[%clk 0:00:05.8]} 36. Qxe2 {[%clk 0:00:16.1]} 36... Qf5 {[%clk 0:00:05.6]} 37.
h4 {[%clk 0:00:13.5]} 37... Qh3+ {[%clk 0:00:05.5]} 38. Kg1 {[%clk 0:00:13.9]}
38... Ne6 {[%clk 0:00:05.5]} 39. Rxd6 {[%clk 0:00:08.4]} 39... Qf5 {[%clk
0:00:05.1]} 40. Rd3 {[%clk 0:00:06.4]} 40... Qc5 {[%clk 0:00:02.9]} 41. Re3
{[%clk 0:00:06.2]} 41... Qc1+ {[%clk 0:00:03]} 42. Kg2 {[%clk 0:00:06.5]} 42...
Qc6+ {[%clk 0:00:03.9]} 43. Qf3 {[%clk 0:00:06.5]} 43... Qxa4 {[%clk 0:00:04.6]}
44. Re4 {[%clk 0:00:06.4]} 44... Qd7 {[%clk 0:00:04.5]} 45. Rg4+ {[%clk
0:00:06.7]} 45... Kf8 {[%clk 0:00:05.3]} 46. Qa8+ {[%clk 0:00:05]} 46... Ke7
{[%clk 0:00:05.6]} 47. Qxa5 {[%clk 0:00:05.3]} 47... Qb7+ {[%clk 0:00:05.7]} 48.
Kh2 {[%clk 0:00:05.4]} 48... Qb2 {[%clk 0:00:06]} 49. Qb4+ {[%clk 0:00:05.8]}
49... Qxb4 {[%clk 0:00:05.7]} 50. Rxb4 {[%clk 0:00:06.7]} 1-0

[Event "Early-Titled-Tuesday-Blitz-February-13-2024"]
[Site "Chess.com"]
[Date "2024.02.13"]
[Round "4"]
[White "biostatistician"]
[Black "sokidze"]
[Result "0-1"]
[WhiteElo "2589"]
[BlackElo "2831"]
[TimeControl "180+1"]
[EndTime "8:43:30 PST"]
[Termination "sokidze won on time"]

1. d4 {[%clk 0:03:00.4]} 1... Nf6 {[%clk 0:02:59.8]} 2. Nf3 {[%clk 0:03:00.4]}
2... d5 {[%clk 0:02:59.9]} 3. c4 {[%clk 0:03:00.6]} 3... e6 {[%clk 0:03:00.4]}
4. Nc3 {[%clk 0:03:01]} 4... a6 {[%clk 0:03:01.1]} 5. cxd5 {[%clk 0:02:59.4]}
5... exd5 {[%clk 0:03:02]} 6. Bg5 {[%clk 0:02:59.7]} 6... Be6 {[%clk 0:03:02.7]}
7. e3 {[%clk 0:02:59.9]} 7... Nbd7 {[%clk 0:03:03.3]} 8. Bd3 {[%clk 0:03:00.3]}
8... Bd6 {[%clk 0:03:04.1]} 9. O-O {[%clk 0:03:00.4]} 9... c6 {[%clk 0:03:04.6]}
10. Rb1 {[%clk 0:02:59.8]} 10... Qc7 {[%clk 0:03:04.1]} 11. b4 {[%clk
0:02:58.4]} 11... Bg4 {[%clk 0:02:58]} 12. h3 {[%clk 0:02:55.9]} 12... Bh5
{[%clk 0:02:58.5]} 13. a4 {[%clk 0:02:51.3]} 13... O-O {[%clk 0:02:54.8]} 14.
Qb3 {[%clk 0:02:35.8]} 14... b5 {[%clk 0:02:42.8]} 15. Rfc1 {[%clk 0:02:28.2]}
15... Qb7 {[%clk 0:02:25.2]} 16. axb5 {[%clk 0:02:08.6]} 16... axb5 {[%clk
0:02:24.5]} 17. Ra1 {[%clk 0:02:08.8]} 17... Bg6 {[%clk 0:02:19.7]} 18. Bf1
{[%clk 0:02:02]} 18... Nb6 {[%clk 0:01:48.2]} 19. Bxf6 {[%clk 0:01:55.9]} 19...
gxf6 {[%clk 0:01:49.1]} 20. Ne1 {[%clk 0:01:54.3]} 20... Nc4 {[%clk 0:01:31]}
21. Nd3 {[%clk 0:01:53.2]} 21... Nd2 {[%clk 0:01:29.6]} 22. Qd1 {[%clk
0:01:40.3]} 22... Nxf1 {[%clk 0:01:25.2]} 23. Nc5 {[%clk 0:01:09.2]} 23... Bxc5
{[%clk 0:01:16.7]} 24. dxc5 {[%clk 0:01:10.1]} 24... Nxe3 {[%clk 0:01:12]} 25.
fxe3 {[%clk 0:01:10.5]} 25... Rfe8 {[%clk 0:01:07.2]} 26. Qd4 {[%clk 0:01:08.9]}
26... Re5 {[%clk 0:01:06.8]} 27. Ne2 {[%clk 0:00:59.4]} 27... Rae8 {[%clk
0:01:05]} 28. Nf4 {[%clk 0:00:58.7]} 28... Kg7 {[%clk 0:00:58.1]} 29. Rf1 {[%clk
0:00:56.9]} 29... Re4 {[%clk 0:00:48.9]} 30. Qb2 {[%clk 0:00:41.7]} 30... Rxe3
{[%clk 0:00:27.7]} 31. Nxg6 {[%clk 0:00:20]} 31... hxg6 {[%clk 0:00:28.6]} 32.
Qxf6+ {[%clk 0:00:20.1]} 32... Kg8 {[%clk 0:00:29.2]} 33. Ra6 {[%clk 0:00:15.3]}
33... R3e6 {[%clk 0:00:19]} 34. Rb6 {[%clk 0:00:15.3]} 34... Rxf6 {[%clk
0:00:06.6]} 35. Rxb7 {[%clk 0:00:15]} 35... Rxf1+ {[%clk 0:00:07.2]} 36. Kxf1
{[%clk 0:00:15.9]} 36... Kg7 {[%clk 0:00:07.8]} 37. Rc7 {[%clk 0:00:15.2]} 37...
Re6 {[%clk 0:00:07.7]} 38. Kf2 {[%clk 0:00:15.5]} 38... Kf6 {[%clk 0:00:05.2]}
39. Kf3 {[%clk 0:00:14.8]} 39... Ke5 {[%clk 0:00:03.9]} 40. Rxf7 {[%clk
0:00:14.5]} 40... Kd4 {[%clk 0:00:04.4]} 41. h4 {[%clk 0:00:13.8]} 41... Kc3
{[%clk 0:00:04.6]} 42. g4 {[%clk 0:00:14.3]} 42... d4 {[%clk 0:00:04.1]} 43. Rd7
{[%clk 0:00:08.1]} 43... d3 {[%clk 0:00:04.2]} 0-1